bitfinex/quotes_ETHUSD_20260102
["timestamp","ask_amount","ask_price","bid_price","bid_amount"]
[1767390133774,4.47363163,3124.0,3123.5,0.001]
[1767390135587,1.27255832,3124.0,3123.5,0.001]
[1767390135800,4.47359174,3124.0,3123.5,0.001]
[1767390136418,0.6918239,3123.9,3123.5,0.001]
[1767390138606,0.842,3124.4,3123.5,2.40119217]
[1767390138807,6.48731349,3124.4,3123.5,2.40119217]
[1767390139910,2.44464722,3124.3,3123.5,2.40119217]
[1767390140114,4.04266627,3124.4,3123.5,2.40119217]
[1767390140603,6.48731349,3124.4,3123.5,2.40119217]
[1767390140805,7.45629929,3124.4,3123.5,2.40119217]
[1767390141417,10.65696556,3124.4,3123.5,2.40119217]
[1767390141922,7.45629929,3124.4,3123.5,2.40119217]
[1767390142119,7.45629929,3124.4,3123.6,2.40019217]
[1767390146325,6.48731349,3124.4,3123.6,2.40019217]
[1767390147067,6.48731349,3124.4,3123.7,2.40019217]
[1767390147190,3.28664722,3124.4,3123.7,2.40019217]
[1767390147382,6.48727062,3124.4,3123.7,2.40019217]
[1767390149516,2.44664722,3124.4,3123.8,2.35223437]
[1767390149716,0.002,3124.4,3123.9,0.55535514]
[1767390150835,0.002,3124.4,3123.9,2.90758951]
[1767390152019,0.002,3124.4,3123.9,2.90253371]
[1767390158564,2.34870218,3124.4,3123.6,2.35223437]
[1767390158728,2.34670218,3124.1,3123.5,0.001]
[1767390160137,2.34670218,3124.1,3123.5,3.20252834]
[1767390161257,2.34670218,3124.1,3123.5,0.001]
[1767390165949,2.34670218,3124.0,3123.4,0.001]
[1767390166177,0.6387624,3123.9,3123.4,0.001]
[1767390166385,0.6387624,3123.9,3123.4,2.35323437]
[1767390167951,3.20092186,3124.1,3123.4,2.35323437]
[1767390167952,6.38753947,3124.2,3123.4,2.35323437]
[1767390168153,3.18670218,3124.2,3123.5,2.35223437]
[1767390169682,2.34670218,3124.2,3123.5,2.35223437]
[1767390169979,6.38933071,3124.4,3123.6,2.35223437]
[1767390170183,7.34850727,3124.4,3123.6,2.35223437]
[1767390172484,2.34670218,3124.3,3123.6,2.35223437]
[1767390173286,2.34670218,3124.3,3123.6,5.55366104]
[1767390173726,2.34670218,3124.3,3123.6,2.35223437]
[1767390177135,2.34670218,3124.3,3123.7,2.35223437]
[1767390177405,2.34670218,3124.3,3123.7,2.58755781]
[1767390179918,0.002,3124.4,3123.7,2.58755781]
[1767390180120,0.002,3124.4,3123.8,2.25028347]
[1767390182315,0.002,3124.4,3123.9,2.25028347]
[1767390186315,2.36718946,3124.4,3123.6,0.001]
[1767390186612,2.60190841,3124.3,3123.6,0.001]
[1767390188308,5.80264696,3124.3,3123.6,0.001]
[1767390188815,5.8026335,3124.3,3123.6,0.001]
[1767390190217,2.60190841,3124.3,3123.6,0.001]
[1767390195023,2.60390841,3124.3,3123.6,2.25128347]
[1767390195925,0.002,3124.3,3123.6,2.25128347]
[1767390197828,0.002,3124.3,3123.7,3.20133175]
[1767390198123,0.002,3124.3,3123.8,2.25028347]
[1767390213621,0.002,3124.3,3123.8,5.45151123]
[1767390214015,0.002,3124.3,3123.9,2.48439504]
[1767390222457,0.002,3124.3,3123.7,5.68567551]
[1767390224060,0.002,3124.3,3123.8,5.68562382]
[1767390224556,0.002,3124.3,3123.8,2.48439504]
[1767390224938,0.002,3124.3,3123.8,5.68561596]
[1767390225865,0.002,3124.3,3123.8,2.48439504]
[1767390226356,0.002,3124.3,3123.9,2.48439504]
[1767390235161,0.002,3124.3,3123.9,2.48439504]
[1767390245873,0.002,3124.3,3123.9,5.68551988]
[1767390246341,0.002,3124.3,3123.9,2.48439504]
[1767390252598,0.002,3124.3,3123.7,9.36782445]
[1767390252805,0.002,3124.3,3123.7,10.62495776]
[1767390254710,0.002,3124.3,3123.8,2.28913205]
[1767390256096,0.002,3124.4,3123.7,11.53715746]
[1767390256298,0.002,3124.8,3124.1,2.28913205]
[1767390256793,0.002,3124.8,3124.2,2.28913205]
[1767390256996,0.002,3124.8,3124.3,2.28913205]
[1767390257672,0.002,3125.0,3124.3,2.28913205]
[1767390257673,0.002,3125.0,3124.5,2.28913205]
[1767390260707,0.002,3125.3,3124.7,2.28913205]
[1767390261175,0.002,3125.0,3124.7,2.28913205]
[1767390262275,0.002,3125.0,3124.8,2.28913205]
[1767390262602,0.002,3125.3,3124.9,0.54893848]
[1767390263301,0.002,3125.3,3124.9,2.83807053]
[1767390264403,0.002,3125.3,3124.9,0.54893848]
[1767390267189,0.002,3125.3,3124.9,2.83807053]
[1767390268784,0.13006987,3125.5,3125.0,2.37763064]
[1767390269100,0.002,3125.5,3125.1,0.61266636]
[1767390269801,0.002,3125.5,3125.1,3.0038311]
[1767390270200,6.35763104,3126.0,3125.1,3.0038311]
[1767390270201,2.3186264,3126.0,3125.2,2.39116474]
[1767390270504,6.47779298,3126.2,3125.4,2.39116474]
[1767390270707,2.3186264,3126.1,3125.4,2.39116474]
[1767390271406,3.27895675,3126.1,3125.4,2.39116474]
[1767390274414,6.47786629,3126.1,3125.4,2.39116474]
[1767390275814,6.47986629,3126.1,3125.4,2.39116474]
[1767390276016,6.47986629,3126.1,3125.4,2.98028757]
[1767390280019,3.28095675,3126.1,3125.4,2.98028757]
[1767390280190,3.28095675,3126.1,3125.4,6.17987716]
[1767390282821,3.28095675,3126.1,3125.4,6.18087716]
[1767390283008,2.3206264,3126.1,3125.4,6.18087716]
[1767390283320,2.3206264,3126.1,3125.5,3.74699865]
[1767390284121,2.3206264,3126.1,3125.5,6.94647203]
[1767390285502,0.002,3126.1,3125.5,10.14596011]
[1767390285718,0.002,3126.1,3125.6,2.39116474]
[1767390286337,2.3206264,3126.3,3125.8,2.39116474]
[1767390286338,0.002,3126.3,3125.8,2.39116474]
[1767390286640,0.002,3126.3,3125.9,0.55904481]
[1767390290610,0.002,3126.1,3125.9,0.55904481]
[1767390293205,2.3206264,3126.1,3125.5,4.55530282]
[1767390293629,2.3206264,3126.1,3125.5,1.35583391]
[1767390293930,2.3206264,3126.1,3125.5,3.19947852]
[1767390294921,2.3206264,3126.1,3125.4,0.001]
[1767390297643,2.3206264,3126.1,3125.4,3.20059045]
[1767390300406,2.3206264,3126.1,3125.4,0.001]
[1767390300613,2.43899289,3126.0,3125.4,0.001]
[1767390301150,2.43899289,3126.0,3125.4,2.4082058]
[1767390301442,2.43899289,3126.0,3125.5,0.88075392]
[1767390301618,0.002,3126.1,3125.4,2.4082058]
[1767390301824,0.002,3126.1,3125.6,2.4072058]
[1767390303748,0.002,3126.3,3125.6,2.4072058]
[1767390303749,0.002,3126.3,3125.8,5.60632907]
[1767390304852,0.002,3126.6,3125.9,2.4072058]
[1767390305024,2.43899289,3127.1,3126.3,2.4072058]
[1767390305951,2.43899289,3127.0,3126.3,2.4072058]
[1767390306936,3.19788518,3127.1,3126.4,2.4072058]
[1767390307547,5.63687807,3127.1,3126.4,2.4072058]
[1767390308051,2.43899289,3127.0,3126.4,2.4072058]
[1767390310047,2.43899289,3126.9,3126.2,5.60594584]
[1767390310255,2.43899289,3126.9,3126.2,6.65849103]
[1767390310443,2.43899289,3126.9,3126.2,3.45975099]
[1767390310847,2.43899289,3126.9,3126.2,2.4072058]
[1767390311356,2.43899289,3126.9,3126.2,5.60596637]
[1767390312050,2.43899289,3126.9,3126.3,3.198656]
[1767390312233,2.43899289,3126.9,3126.3,3.23064269]
[1767390312439,2.43899289,3126.9,3126.3,5.6058618]
[1767390313248,2.43899289,3126.9,3126.3,6.48632688]
[1767390316856,2.43899289,3126.9,3126.3,3.28767088]
[1767390317754,2.43899289,3126.9,3126.3,6.48633038]
[1767390319268,2.43899289,3126.9,3126.3,3.28767088]
[1767390319957,2.44099289,3126.9,3126.3,3.28767088]
[1767390320467,2.44099289,3126.9,3126.3,6.48633351]
[1767390322056,2.44099289,3126.9,3126.3,3.28767088]
[1767390322265,2.44099289,3126.9,3125.9,0.001]
[1767390322266,2.43899289,3126.8,3126.0,3.1989204]
[1767390323234,2.43899289,3126.8,3126.1,3.19785181]
[1767390323436,2.43899289,3126.8,3126.0,3.19892285]
[1767390324273,2.43899289,3126.7,3125.9,0.001]
[1767390324478,2.43899289,3126.7,3126.0,0.88075348]
[1767390325578,2.43899289,3126.7,3126.0,3.28795928]
[1767390325991,0.002,3126.9,3126.1,2.4072058]
[1767390326276,0.002,3126.9,3126.3,2.4072058]
[1767390326482,0.002,3126.9,3126.4,2.43919147]
[1767390326772,0.002,3126.9,3126.4,3.00297718]
[1767390327161,0.002,3126.9,3126.4,0.56378571]
[1767390327363,2.44099289,3126.9,3126.4,0.56378571]
[1767390327979,2.44099289,3126.9,3126.2,5.60593385]
[1767390330864,2.44099289,3126.9,3126.3,2.52112792]
[1767390332177,2.44099289,3126.9,3126.3,2.48914123]
[1767390333557,5.63905785,3126.9,3126.3,2.48914123]
[1767390333757,2.32047438,3126.8,3126.1,5.68797503]
[1767390334082,2.32047438,3126.8,3126.2,0.65687285]
[1767390334678,2.32047438,3126.8,3126.2,3.85563672]
[1767390335000,2.32047438,3126.8,3126.2,0.65687285]
[1767390335281,2.32047438,3126.8,3126.2,3.85563344]
[1767390335585,2.32047438,3126.8,3126.2,0.65687285]
[1767390336194,2.32047438,3126.8,3126.2,3.8556376]
[1767390336856,2.32047438,3126.8,3126.2,0.65687285]
[1767390338682,5.5186414,3126.8,3126.2,0.65687285]
[1767390338992,2.32047438,3126.8,3126.1,5.68896544]
[1767390341369,5.51867014,3126.8,3126.1,2.49014123]
[1767390342191,2.32047438,3126.8,3126.1,5.68901075]
[1767390348764,2.32047438,3126.8,3126.1,8.88788474]
[1767390350096,2.32047438,3126.8,3126.1,5.68901075]
[1767390350267,2.32047438,3126.8,3126.1,6.66608152]
[1767390352697,2.32247438,3126.8,3126.1,6.66608152]
[1767390357699,0.002,3126.8,3126.2,2.48914123]
[1767390358573,0.002,3126.8,3126.3,3.19866935]
[1767390360792,2.45669752,3126.8,3126.2,5.68788691]
[1767390361091,2.45669752,3126.8,3126.2,3.19874568]
[1767390363699,2.45669752,3126.8,3126.1,6.61553937]
[1767390364004,2.45469752,3126.7,3126.1,0.001]
[1767390364307,2.45469752,3126.7,3126.1,3.19986116]
[1767390364477,2.45469752,3126.7,3126.1,0.001]
[1767390366797,2.45469752,3126.6,3126.1,0.001]
[1767390368506,5.65306158,3126.6,3126.1,0.001]
[1767390368704,2.45469752,3126.5,3126.1,0.001]
[1767390371572,2.45469752,3126.4,3126.1,0.001]
[1767390378878,2.45469752,3126.4,3126.0,0.001]
[1767390380704,0.88532407,3126.6,3126.0,0.001]
[1767390380705,3.34002159,3126.6,3126.0,0.001]
[1767390380911,2.45469752,3126.6,3126.0,0.001]
[1767390381302,2.45469752,3126.6,3126.0,2.43964323]
[1767390383302,5.65306025,3126.6,3126.0,2.43964323]
[1767390385507,5.65306025,3126.6,3126.0,0.001]
[1767390385713,2.45469752,3126.5,3126.0,0.001]
[1767390385915,3.33983982,3126.4,3126.0,0.001]
[1767390390589,0.8851423,3126.4,3126.0,0.001]
[1767390390789,2.41151524,3126.6,3126.0,0.001]
[1767390391313,5.60993814,3126.6,3126.0,0.001]
[1767390395294,2.41151524,3126.5,3126.0,0.001]
[1767390398126,5.6099904,3126.5,3126.0,0.001]
[1767390398745,2.41151524,3126.4,3126.0,0.001]
[1767390398942,2.97271368,3126.4,3126.0,0.001]
[1767390399116,6.1713004,3126.4,3126.0,0.001]
[1767390399441,2.97271368,3126.4,3126.0,0.001]
[1767390399628,2.41151524,3126.2,3125.8,0.001]
[1767390399943,0.62830606,3126.1,3125.8,0.001]
[1767390400740,2.41151524,3126.2,3125.8,0.001]
[1767390401838,5.61029341,3126.2,3125.8,0.001]
[1767390403021,3.19877817,3126.2,3125.8,0.001]
[1767390403226,3.19872169,3126.3,3125.8,0.001]
[1767390403445,2.41151524,3126.2,3125.8,0.001]
[1767390403642,0.56102369,3126.1,3125.8,0.001]
[1767390403818,3.75989846,3126.1,3125.8,0.001]
[1767390404222,0.56102369,3126.1,3125.8,0.001]
[1767390405629,3.75990237,3126.1,3125.8,0.001]
[1767390405945,2.97253893,3126.1,3125.8,0.001]
[1767390406246,2.70876913,3126.0,3125.8,0.001]
[1767390406648,2.70876913,3126.0,3125.4,2.28004259]
[1767390408049,2.70876913,3126.0,3125.4,5.47961355]
[1767390408551,0.56102369,3126.1,3125.5,2.27904259]
[1767390411647,0.56102369,3126.1,3125.5,5.47852795]
[1767390411846,2.41151524,3126.2,3125.5,5.47852795]
[1767390412846,5.61030271,3126.2,3125.5,2.27904259]
[1767390413022,5.61030271,3126.2,3125.5,5.47852544]
[1767390413750,5.61030271,3126.2,3125.5,5.47852068]
[1767390414348,2.41151524,3126.2,3125.5,5.47952068]
[1767390415349,2.41151524,3126.2,3125.5,2.28004259]
[1767390415541,3.43271314,3126.2,3125.5,2.28004259]
[1767390416250,3.43271314,3126.2,3125.5,5.47952964]
[1767390417053,2.41151524,3126.1,3125.5,5.47952964]
[1767390417257,2.41151524,3126.1,3125.5,2.28004259]
[1767390417633,1.40319844,3126.4,3125.6,2.27904259]
[1767390417834,0.002,3126.4,3125.8,2.27904259]
[1767390419147,0.002,3126.4,3125.8,5.4781899]
[1767390419367,0.002,3126.4,3125.9,2.27904259]
[1767390419573,0.002,3126.4,3126.0,2.47507301]
[1767390420786,2.37355095,3126.4,3125.8,2.47507301]
[1767390420950,0.2373551,3126.3,3125.8,2.47507301]
[1767390421143,0.002,3126.4,3125.8,5.67424886]
[1767390421351,0.002,3126.4,3125.9,2.47507301]
[1767390426862,0.002,3126.4,3125.8,0.001]
[1767390427067,2.37355095,3126.4,3125.8,0.001]
[1767390429176,5.57212628,3126.4,3125.8,0.001]
[1767390429338,2.37355095,3126.4,3125.8,0.001]
[1767390431475,6.12955952,3126.4,3125.8,0.001]
[1767390431775,2.37155095,3126.3,3125.8,0.001]
[1767390434082,0.55941024,3126.4,3125.8,2.47607301]
[1767390434453,2.93096119,3126.4,3125.8,2.47607301]
[1767390436706,2.37155095,3126.3,3125.5,0.001]
[1767390437011,2.37155095,3126.1,3125.5,0.001]
[1767390437699,5.5704311,3126.1,3125.5,0.001]
[1767390438713,2.37155095,3126.0,3125.5,0.001]
[1767390439199,2.37155095,3126.0,3125.4,0.001]
[1767390439371,5.57062961,3125.9,3125.4,0.001]
[1767390439568,0.55706296,3125.8,3125.4,0.001]
[1767390439773,2.92861391,3125.8,3125.4,0.001]
[1767390440398,2.92861391,3125.8,3124.9,5.67616488]
[1767390441503,5.57083431,3125.7,3124.9,2.47607301]
[1767390442003,2.37155095,3125.6,3124.9,2.47607301]
[1767390442205,3.24856272,3125.5,3124.9,2.47607301]
[1767390442587,3.24856272,3125.5,3124.9,5.67617155]
[1767390442894,3.24856272,3125.5,3124.9,2.47607301]
[1767390443884,2.37155095,3125.4,3124.9,0.001]
[1767390446211,5.57115728,3125.4,3124.9,0.001]
[1767390449712,3.19960633,3125.4,3124.9,0.001]
[1767390451107,6.39921266,3125.4,3124.9,0.001]
[1767390452117,3.19960633,3125.4,3124.9,0.001]
[1767390452283,4.0668867,3125.4,3124.9,0.001]
[1767390455788,6.34056698,3125.4,3124.9,0.001]
[1767390456512,2.27368028,3125.3,3124.9,0.001]
[1767390456920,3.19979521,3125.2,3124.9,0.001]
[1767390457210,5.47347549,3125.2,3124.9,0.001]
[1767390461993,3.19979521,3125.2,3124.9,0.001]
[1767390462691,3.19974635,3125.3,3124.9,0.001]
[1767390462893,4.15377917,3125.3,3124.9,0.001]
[1767390465997,4.15373727,3125.3,3124.9,0.001]
[1767390466723,0.95403282,3125.3,3124.9,0.001]
[1767390466934,4.15374258,3125.3,3124.9,0.001]
[1767390467925,2.27368028,3125.7,3124.9,2.31990278]
[1767390468130,3.19943887,3125.6,3124.9,2.31990278]
[1767390468903,0.002,3125.4,3124.9,2.31990278]
[1767390474056,0.002,3125.4,3125.0,2.31890278]
[1767390474329,0.002,3125.4,3125.2,2.31890278]
[1767390475634,0.002,3125.8,3125.4,2.31890278]
[1767390476622,0.002,3125.8,3125.4,3.15890278]
[1767390477233,0.002,3125.8,3125.3,0.84]
[1767390477732,0.002,3125.4,3125.3,3.15890278]
[1767390477943,0.002,3125.4,3125.3,3.79478026]
[1767390479333,0.002,3125.4,3125.3,0.63587748]
[1767390486420,0.002,3125.4,3125.3,6.31738731]
[1767390488367,0.002,3125.4,3125.3,3.11769449]
[1767390489252,0.002,3125.4,3125.3,6.31738731]
[1767390491346,0.002,3125.4,3125.3,3.11769449]
[1767390493751,0.002,3125.4,3125.3,3.11869449]
[1767390494138,0.002,3125.4,3125.3,0.71584516]
[1767390494339,2.27626886,3125.4,3125.2,3.199757]
[1767390494662,2.27626886,3125.4,3125.1,0.84]
[1767390494663,2.27626886,3125.4,3125.1,3.19984983]
[1767390494955,0.002,3125.4,3125.1,2.55407459]
[1767390495258,0.002,3125.4,3125.0,5.68181701]
[1767390495464,0.002,3125.4,3125.1,0.88828834]
[1767390496053,0.002,3125.4,3125.1,1e-08]
[1767390497244,0.002,3125.4,3124.9,3.2011024]
[1767390497658,0.002,3125.4,3124.9,0.001]
[1767390500465,0.002,3125.4,3124.9,2.48281701]
[1767390500653,0.002,3125.4,3124.9,0.001]
[1767390501245,0.002,3125.4,3124.9,2.48281701]
[1767390501446,0.002,3125.4,3125.0,0.2483817]
[1767390502845,0.002,3125.4,3125.0,2.73019871]
[1767390503160,0.002,3125.4,3125.0,5.93017803]
[1767390503348,0.002,3125.4,3125.0,3.44836102]
[1767390503556,0.002,3125.4,3125.0,5.93017803]
[1767390503759,0.002,3125.4,3125.1,0.5931178]
[1767390503943,0.002,3125.4,3125.1,0.46127489]
[1767390504972,0.002,3125.4,3125.1,2.88311398]
[1767390505462,0.002,3125.4,3125.1,2.81719238]
[1767390505672,0.002,3125.4,3125.1,0.33537537]
[1767390506268,0.002,3125.4,3125.1,0.26945378]
[1767390507556,0.002,3125.4,3125.1,2.58037067]
[1767390507763,0.2483817,3124.9,3124.8,0.001]
[1767390508069,0.2483817,3124.9,3124.8,2.31191689]
[1767390508270,0.2483817,3124.9,3124.8,0.001]
[1767390512379,0.2483817,3124.9,3124.7,0.001]
[1767390513083,3.87494374,3125.3,3124.7,0.001]
[1767390513275,0.38769437,3125.2,3124.7,0.001]
[1767390515586,0.38769437,3125.2,3124.7,2.46377753]
[1767390517695,2.45152933,3125.1,3124.5,0.001]
[1767390517864,3.87494374,3125.0,3124.3,2.46277753]
[1767390518962,4.8663402,3125.0,3124.3,2.46277753]
[1767390519264,7.31786953,3125.0,3124.3,2.46277753]
[1767390519599,7.31786953,3125.0,3124.5,0.001]
[1767390519798,10.51788674,3125.0,3124.5,0.001]
[1767390520599,3.87494374,3124.7,3124.1,0.001]
[1767390521088,6.32647307,3124.7,3124.1,0.001]
[1767390521289,2.45152933,3124.6,3124.1,0.001]
[1767390522587,2.45152933,3124.6,3124.0,2.46377753]
[1767390523897,2.45152933,3124.6,3124.0,5.66478893]
[1767390524789,3.58949076,3125.2,3124.1,2.46277753]
[1767390525092,0.84,3125.0,3124.1,2.46277753]
[1767390525590,3.29152933,3125.0,3124.1,2.46277753]
[1767390525997,0.84,3125.0,3124.3,2.46277753]
[1767390527984,0.84,3125.0,3124.3,2.46377753]
[1767390529273,0.38969437,3125.2,3124.3,2.46377753]
[1767390529274,0.002,3125.2,3124.4,2.46277753]
[1767390529492,0.002,3125.2,3124.6,2.46277753]
[1767390529678,0.002,3125.2,3124.8,2.46277753]
[1767390531270,0.002,3125.2,3124.9,5.66287993]
[1767390531470,0.002,3125.2,3125.0,0.56628799]
[1767390531774,0.002,3125.2,3125.0,3.02906552]
[1767390533296,0.002,3125.2,3125.1,5.66267513]
[1767390535173,0.002,3125.2,3125.1,2.46277753]
[1767390538005,0.002,3125.2,3125.1,5.66267513]
[1767390538205,0.002,3125.2,3125.1,6.60558045]
[1767390538985,0.002,3125.2,3125.1,3.40568285]
[1767390540093,0.002,3125.2,3125.1,0.94290532]
[1767390540275,0.002,3125.2,3124.9,5.49002624]
[1767390543606,0.002,3125.2,3124.8,3.20015223]
[1767390543778,0.002,3125.2,3124.9,3.20009959]
[1767390544508,0.002,3125.2,3124.8,5.49017487]
[1767390544898,0.002,3125.2,3124.9,2.28997006]
[1767390545098,0.002,3125.2,3125.0,3.15900803]
[1767390545415,0.002,3125.2,3125.1,2.28997006]
[1767390551118,0.002,3125.2,3125.0,4.06900465]
[1767390562634,0.002,3125.2,3125.0,0.86903797]
[1767390562926,0.002,3125.2,3124.9,2.28997006]
[1767390563132,0.002,3125.2,3124.8,3.20013069]
[1767390564199,2.46865825,3125.2,3124.7,3.2002681]
[1767390565524,0.002,3125.2,3124.7,2.28997006]
[1767390568530,0.002,3125.2,3124.9,2.4238736]
[1767390569837,0.002,3125.2,3124.8,3.20020481]
[1767390571831,0.002,3125.2,3124.8,6.40040962]
[1767390573435,0.002,3125.2,3124.8,8.77816062]
[1767390573739,0.002,3125.2,3124.8,9.65597668]
[1767390574041,0.002,3125.2,3124.8,6.45577187]
[1767390575845,0.002,3125.2,3124.8,4.07802087]
[1767390576134,0.002,3125.2,3124.8,3.20020481]
[1767390576338,0.002,3125.2,3124.7,6.40058141]
[1767390577240,0.002,3125.2,3124.8,2.377751]
[1767390578220,0.002,3125.2,3124.9,3.2001024]
[1767390578431,0.002,3125.2,3125.0,2.377751]
[1767390578625,0.002,3125.2,3125.1,0.87779558]
[1767390580338,0.002,3125.2,3125.0,5.57773239]
[1767390580717,0.002,3125.2,3125.0,3.19998139]
[1767390582754,0.002,3125.2,3124.8,3.20019709]
[1767390582925,0.002,3125.2,3124.8,5.57794809]
[1767390583435,0.002,3125.2,3124.8,3.20019709]
[1767390585153,0.002,3125.2,3124.7,8.77836139]
[1767390585357,0.002,3125.2,3124.7,9.65619753]
[1767390586153,0.002,3125.2,3124.7,7.27844653]
[1767390586370,2.46569882,3125.2,3124.7,7.27844653]
[1767390586728,2.46569882,3125.2,3124.7,4.07813931]
[1767390587365,2.46569882,3125.2,3124.7,7.27844653]
[1767390589227,2.46569882,3125.2,3124.8,0.72784465]
[1767390589553,2.46569882,3125.2,3124.8,3.92797884]
[1767390590161,0.002,3125.2,3124.8,3.92797884]
[1767390590961,0.002,3125.2,3124.8,0.72784465]
[1767390591164,2.46569882,3125.2,3124.8,0.72784465]
[1767390591333,2.46569882,3125.2,3124.8,3.92804738]
[1767390593551,2.46569882,3125.2,3124.8,7.12825219]
[1767390597955,0.002,3125.2,3124.8,9.5049872]
[1767390598465,0.002,3125.2,3124.8,6.30478239]
[1767390598645,0.002,3125.2,3124.8,5.57795373]
[1767390600653,0.002,3125.2,3124.6,2.48252555]
[1767390601049,2.28356087,3125.2,3124.5,6.40102416]
[1767390601367,2.28356087,3125.2,3124.6,2.48252555]
[1767390601368,0.002,3125.2,3124.6,2.48252555]
[1767390602842,0.002,3125.2,3124.7,6.40061444]
[1767390603050,0.002,3125.2,3124.7,8.88313999]
[1767390604479,0.002,3125.2,3124.7,9.77145399]
[1767390605364,2.28356087,3125.2,3124.7,3.20030722]
[1767390606070,2.28356087,3125.2,3124.7,6.40061444]
[1767390608279,2.28356087,3125.2,3124.6,8.88334485]
[1767390609363,2.28356087,3125.2,3124.6,6.4008193]
[1767390611470,2.28356087,3125.2,3124.5,8.88354971]
[1767390611637,2.28356087,3125.2,3124.6,0.88835497]
[1767390612040,2.28356087,3125.2,3124.6,3.37088052]
[1767390612978,0.002,3125.2,3124.7,2.48252555]
[1767390614172,0.002,3125.2,3124.8,6.40040962]
[1767390616453,0.002,3125.2,3124.8,3.20020481]
[1767390618479,0.002,3125.2,3124.8,6.40040962]
[1767390619249,2.28356087,3125.2,3124.8,3.20020481]
[1767390619849,2.23356087,3125.2,3124.8,7.12929286]
[1767390620869,2.28356087,3125.4,3124.8,7.12929286]
[1767390622393,3.87532954,3125.2,3124.5,0.001]
[1767390622685,0.002,3125.4,3124.1,2.48252555]
[1767390622686,3.87532954,3124.6,3124.1,2.48252555]
[1767390622857,6.15689041,3124.9,3124.2,2.48252555]
[1767390623052,2.28156087,3124.8,3123.9,3.20106805]
[1767390623250,2.28156087,3124.8,3124.0,5.68449564]
[1767390623459,2.28156087,3124.7,3124.0,0.001]
[1767390624686,2.28156087,3124.5,3124.0,0.001]
[1767390627648,3.87532954,3124.4,3123.8,0.001]
[1767390627884,0.61568904,3124.8,3123.6,2.48352555]
[1767390627885,3.87532954,3124.1,3123.6,0.001]
[1767390628185,0.38753295,3124.0,3123.6,0.001]
[1767390628386,3.87532954,3124.1,3123.6,0.001]
[1767390629685,2.46747089,3124.0,3123.5,0.001]
[1767390629865,3.87532954,3124.1,3123.2,0.001]
[1767390629866,6.34280043,3123.8,3123.2,0.001]
[1767390630182,3.10175093,3123.8,3123.2,2.42127445]
[1767390631355,2.46747089,3123.6,3123.2,0.001]
[1767390631580,2.46747089,3123.6,3123.0,0.001]
[1767390631882,2.46747089,3123.6,3122.8,2.42127445]
[1767390632273,2.46747089,3123.6,3122.8,5.6235259]
[1767390633387,2.46747089,3123.6,3122.8,6.50622354]
[1767390633584,2.46747089,3123.6,3123.3,0.001]
[1767390634263,3.10175093,3123.8,3123.3,0.001]
[1767390634791,2.46747089,3124.2,3123.3,2.42127445]
[1767390636490,2.46747089,3124.0,3123.3,0.001]
[1767390638589,2.46747089,3123.9,3123.3,0.001]
[1767390650007,0.002,3124.2,3123.3,0.001]
[1767390650008,2.46747089,3124.1,3123.3,2.42127445]
[1767390650495,2.46747089,3123.9,3123.3,2.42127445]
[1767390650710,0.84,3124.0,3123.4,2.42027445]
[1767390652302,0.84,3124.0,3123.4,5.62189358]
[1767390653406,2.46947089,3124.2,3123.5,2.27695013]
[1767390653586,3.30947089,3124.2,3123.5,2.27695013]
[1767390654595,2.32462507,3124.1,3123.5,2.27695013]
[1767390657807,3.34890445,3124.1,3123.5,2.27695013]
[1767390657991,2.32462507,3124.0,3123.3,3.2026922]
[1767390659380,2.32462507,3124.0,3123.3,5.5533602]
[1767390660874,2.32462507,3124.0,3123.4,2.350668]
[1767390665296,2.32462507,3124.0,3123.3,3.2026922]
[1767390665499,2.64128758,3124.0,3123.3,3.2026922]
[1767390667419,2.64128758,3124.0,3123.3,5.5533602]
[1767390669519,2.64128758,3124.0,3123.0,0.001]
[1767390669728,2.36418678,3123.9,3123.0,0.001]
[1767390671491,2.36418678,3123.7,3122.8,0.001]
[1767390671728,2.36418678,3123.5,3122.8,0.001]
[1767390676999,2.36418678,3123.3,3122.4,3.20263035]
[1767390677342,2.36418678,3123.3,3122.3,5.55340964]
[1767390677700,2.36418678,3123.3,3122.3,2.350668]
[1767390678005,2.36418678,3123.1,3122.3,2.350668]
[1767390678199,2.36418678,3123.1,3122.3,5.55342509]
[1767390679930,3.20418678,3123.1,3122.3,5.55342509]
[1767390680113,2.36418678,3123.0,3122.3,5.55342509]
[1767390680606,2.36418678,3123.0,3122.3,2.350668]
[1767390680814,2.36418678,3123.0,3122.3,5.55343094]
[1767390681001,2.36418678,3123.0,3122.3,6.42907022]
[1767390681328,2.36418678,3123.0,3122.4,2.350668]
[1767390681633,0.84,3123.1,3122.4,2.350668]
[1767390681934,0.84,3123.1,3122.5,2.350668]
[1767390684849,0.84,3123.1,3122.5,5.55322895]
[1767390685500,7.39870435,3124.0,3122.6,2.350668]
[1767390685501,0.67207774,3123.9,3122.6,2.350668]
[1767390685707,4.19760578,3124.0,3122.6,2.350668]
[1767390685708,0.002,3124.0,3122.6,2.81289677]
[1767390686027,0.002,3124.0,3122.7,2.80612432]
[1767390686542,0.002,3124.0,3122.8,2.350668]
[1767390686719,0.002,3124.0,3123.0,2.350668]
[1767390686926,0.002,3124.0,3123.3,2.350668]
[1767390689348,0.002,3124.0,3123.5,2.45430455]
[1767390691446,0.002,3124.0,3123.5,5.65576156]
[1767390691652,0.002,3124.0,3123.6,2.45430455]
[1767390695531,0.002,3124.0,3123.6,5.65570107]
[1767390695737,0.002,3124.0,3123.7,0.56557011]
[1767390697751,0.002,3124.0,3123.7,3.7668786]
[1767390698660,0.002,3124.0,3123.7,0.56557011]
[1767390708370,0.002,3124.0,3123.6,5.65567714]
[1767390710871,0.002,3124.0,3123.6,2.45430455]
[1767390711166,0.002,3124.0,3123.5,3.20152432]
[1767390711748,0.002,3124.0,3123.6,3.20143373]
[1767390713074,0.002,3124.0,3123.5,5.51603846]
[1767390714478,0.002,3124.0,3123.5,6.38780549]
[1767390715597,0.002,3124.0,3123.5,6.38779612]
[1767390716277,0.002,3124.0,3123.6,2.31450173]